[Event "*** Titled Tuesday Blitz"]
[Site "Chess.com"]
[Date "2019.03.05"]
[Round "3"]
[White "wenx95"]
[Black "LawrenceTrent"]
[Result "1-0"]
[WhiteElo "2489"]
[BlackElo "2528"]
[TimeControl "180+2"]
[EndTime "13:41:47 PST"]
[Termination "wenx95 won by resignation"]

1. d4 {[%clk 0:03:00.6]} 1... Nf6 {[%clk 0:03:00.4]} 2. Nc3 {[%clk 0:03:01.8]}
2... d5 {[%clk 0:02:59.6]} 3. Bf4 {[%clk 0:03:02.7]} 3... a6 {[%clk 0:03:00.1]}
4. e3 {[%clk 0:03:02.4]} 4... Bf5 {[%clk 0:02:59.8]} 5. Bd3 {[%clk 0:03:02.9]}
5... Bxd3 {[%clk 0:03:00.6]} 6. cxd3 {[%clk 0:03:04.8]} 6... e6 {[%clk
0:03:00.6]} 7. Nf3 {[%clk 0:03:05.2]} 7... Bd6 {[%clk 0:02:59.5]} 8. Bg3 {[%clk
0:02:57.7]} 8... O-O {[%clk 0:03:00.3]} 9. O-O {[%clk 0:02:58.7]} 9... Qe7
{[%clk 0:03:00]} 10. Rc1 {[%clk 0:02:58.8]} 10... Nbd7 {[%clk 0:03:00.1]} 11. e4
{[%clk 0:02:59.7]} 11... Bxg3 {[%clk 0:03:00.4]} 12. hxg3 {[%clk 0:03:00.5]}
12... c6 {[%clk 0:03:01.7]} 13. Qe2 {[%clk 0:03:00.5]} 13... Rfe8 {[%clk
0:03:02.2]} 14. a3 {[%clk 0:02:58.8]} 14... h6 {[%clk 0:03:02.6]} 15. Qe3 {[%clk
0:02:24.5]} 15... Qd8 {[%clk 0:02:49.3]} 16. Qf4 {[%clk 0:02:18.4]} 16... Qb8
{[%clk 0:02:43.4]} 17. e5 {[%clk 0:02:16.6]} 17... Nh7 {[%clk 0:02:44]} 18. g4
{[%clk 0:02:09.9]} 18... f6 {[%clk 0:02:35]} 19. Rfe1 {[%clk 0:02:09.2]} 19...
Ng5 {[%clk 0:02:35.6]} 20. Nxg5 {[%clk 0:01:46.7]} 20... fxg5 {[%clk 0:02:36.7]}
21. Qe3 {[%clk 0:01:45.9]} 21... Rf8 {[%clk 0:02:33.7]} 22. g3 {[%clk
0:01:46.5]} 22... Qe8 {[%clk 0:02:32]} 23. Kg2 {[%clk 0:01:46]} 23... Qg6 {[%clk
0:02:31.8]} 24. b4 {[%clk 0:01:38]} 24... Rf7 {[%clk 0:02:25.2]} 25. f3 {[%clk
0:01:16.8]} 25... Raf8 {[%clk 0:02:24]} 26. Rf1 {[%clk 0:01:17.9]} 26... Re8
{[%clk 0:01:57.4]} 27. Rf2 {[%clk 0:01:16.7]} 27... Nf8 {[%clk 0:01:56.9]} 28.
a4 {[%clk 0:01:14.5]} 28... h5 {[%clk 0:01:57.3]} 29. gxh5 {[%clk 0:01:15]}
29... Qxh5 {[%clk 0:01:58.3]} 30. Rh1 {[%clk 0:01:15.3]} 30... Qg6 {[%clk
0:01:58.8]} 31. g4 {[%clk 0:01:09.6]} 31... Nh7 {[%clk 0:01:24.3]} 32. Ne2
{[%clk 0:01:06.8]} 32... Ref8 {[%clk 0:01:13.9]} 33. Rh3 {[%clk 0:01:07.7]}
33... Rf4 {[%clk 0:00:56.9]} 34. Rf1 {[%clk 0:01:06.9]} 34... Kf7 {[%clk
0:00:44.5]} 35. Nxf4 {[%clk 0:01:05.6]} 35... gxf4 {[%clk 0:00:45.9]} 36. Qxf4+
{[%clk 0:01:06.8]} 36... Ke8 {[%clk 0:00:47.3]} 37. Qe3 {[%clk 0:01:05.9]} 37...
Ng5 {[%clk 0:00:45.1]} 38. Rh5 {[%clk 0:01:03.8]} 38... Nxf3 {[%clk 0:00:46.3]}
39. Kh3 {[%clk 0:00:40.1]} 39... Qf7 {[%clk 0:00:38]} 40. Kg3 {[%clk 0:00:38.8]}
40... g6 {[%clk 0:00:28.3]} 41. Rhh1 {[%clk 0:00:36.9]} 41... Qe7 {[%clk
0:00:21.3]} 42. Rxf3 {[%clk 0:00:28.4]} 42... Qxb4 {[%clk 0:00:21.5]} 43. Rxf8+
{[%clk 0:00:28.4]} 43... Qxf8 {[%clk 0:00:23.4]} 44. Qf4 {[%clk 0:00:28.2]} 1-0

[Event "*** Titled Tuesday Blitz"]
[Site "Chess.com"]
[Date "2019.03.05"]
[Round "3"]
[White "SamCopeland"]
[Black "aa175"]
[Result "1-0"]
[WhiteElo "2029"]
[BlackElo "1855"]
[TimeControl "180+2"]
[EndTime "13:41:47 PST"]
[Termination "SamCopeland won by checkmate"]

1. e4 {[%clk 0:03:01.9]} 1... e5 {[%clk 0:02:59.4]} 2. Nf3 {[%clk 0:03:01.1]}
2... f5 {[%clk 0:02:57.2]} 3. Nxe5 {[%clk 0:02:50.6]} 3... Nc6 {[%clk
0:02:56.9]} 4. Qh5+ {[%clk 0:02:42]} 4... g6 {[%clk 0:02:57.7]} 5. Nxg6 {[%clk
0:02:42.4]} 5... Nf6 {[%clk 0:02:59]} 6. Qh4 {[%clk 0:02:35.9]} 6... Rg8 {[%clk
0:02:58.7]} 7. Nxf8 {[%clk 0:02:35.1]} 7... Rg4 {[%clk 0:02:56.2]} 8. Qh6 {[%clk
0:02:29]} 8... Rxe4+ {[%clk 0:02:55.7]} 9. Be2 {[%clk 0:02:28.9]} 9... Nd4
{[%clk 0:02:55.1]} 10. Nc3 {[%clk 0:02:26.8]} 10... Rxe2+ {[%clk 0:02:32.2]} 11.
Nxe2 {[%clk 0:02:25.7]} 11... Qe7 {[%clk 0:02:24.4]} 12. O-O {[%clk 0:01:56.8]}
12... Nxe2+ {[%clk 0:01:53.2]} 13. Kh1 {[%clk 0:01:56.6]} 13... Ng4 {[%clk
0:01:20.6]} 14. Qh5+ {[%clk 0:01:16]} 14... Kxf8 {[%clk 0:01:15.8]} 15. h3
{[%clk 0:01:02.7]} 15... Nxf2+ {[%clk 0:01:14.5]} 16. Rxf2 {[%clk 0:00:43.2]}
16... Ng3+ {[%clk 0:01:14.8]} 17. Kh2 {[%clk 0:00:44.4]} 17... Nxh5 {[%clk
0:01:16.7]} 18. Rxf5+ {[%clk 0:00:44.9]} 18... Nf6 {[%clk 0:01:14]} 19. d4
{[%clk 0:00:43.6]} 19... d5 {[%clk 0:01:11]} 20. Rf3 {[%clk 0:00:39.8]} 20...
Qg7 {[%clk 0:00:52.9]} 21. Bf4 {[%clk 0:00:34.2]} 21... Kf7 {[%clk 0:00:05.3]}
22. Be5 {[%clk 0:00:34.8]} 22... Bd7 {[%clk 0:00:03.8]} 23. Raf1 {[%clk
0:00:34.3]} 23... Rg8 {[%clk 0:00:03.6]} 24. Rxf6+ {[%clk 0:00:30.4]} 24... Ke7
{[%clk 0:00:03.4]} 25. R1f2 {[%clk 0:00:12.7]} 25... Qg3+ {[%clk 0:00:03.9]} 26.
Bxg3 {[%clk 0:00:13]} 26... Be6 {[%clk 0:00:03.8]} 27. Bh4 {[%clk 0:00:13.2]}
27... Kd7 {[%clk 0:00:04.5]} 28. Rh6 {[%clk 0:00:11.8]} 28... Rg7 {[%clk
0:00:05.5]} 29. Bf6 {[%clk 0:00:11.9]} 29... Rf7 {[%clk 0:00:05.6]} 30. Kg1
{[%clk 0:00:11.5]} 30... Kd6 {[%clk 0:00:05.6]} 31. Be5+ {[%clk 0:00:12.5]}
31... Ke7 {[%clk 0:00:06.5]} 32. Rxf7+ {[%clk 0:00:14.4]} 32... Kxf7 {[%clk
0:00:08.4]} 33. Rxh7+ {[%clk 0:00:15.8]} 33... Kg6 {[%clk 0:00:10.3]} 34. Rxc7
{[%clk 0:00:16.9]} 34... b5 {[%clk 0:00:12.2]} 35. Rxa7 {[%clk 0:00:17.9]} 35...
Bf5 {[%clk 0:00:14.1]} 36. Rc7 {[%clk 0:00:17.5]} 36... Bxc2 {[%clk 0:00:16]}
37. Rxc2 {[%clk 0:00:17.9]} 37... Kf5 {[%clk 0:00:17.9]} 38. Rc5 {[%clk
0:00:19.5]} 38... Ke4 {[%clk 0:00:19.8]} 39. Rxb5 {[%clk 0:00:20.4]} 39... Kd3
{[%clk 0:00:21.7]} 40. Rc5 {[%clk 0:00:21.8]} 40... Ke2 {[%clk 0:00:23.6]} 41.
b4 {[%clk 0:00:23.1]} 41... Kd2 {[%clk 0:00:25.5]} 42. b5 {[%clk 0:00:24.4]}
42... Kd1 {[%clk 0:00:26.8]} 43. b6 {[%clk 0:00:25.7]} 43... Kd2 {[%clk
0:00:28.7]} 44. b7 {[%clk 0:00:27.1]} 44... Kd3 {[%clk 0:00:30.6]} 45. b8=Q
{[%clk 0:00:28.2]} 45... Ke3 {[%clk 0:00:32.5]} 46. Qb3+ {[%clk 0:00:29.1]}
46... Ke4 {[%clk 0:00:34.4]} 47. Qxd5+ {[%clk 0:00:27]} 47... Ke3 {[%clk
0:00:36.3]} 48. Qf3+ {[%clk 0:00:27.8]} 48... Kd2 {[%clk 0:00:38.2]} 49. Bf4+
{[%clk 0:00:28.4]} 49... Ke1 {[%clk 0:00:38.9]} 50. Rc1# {[%clk 0:00:29.5]} 1-0

[Event "*** Titled Tuesday Blitz"]
[Site "Chess.com"]
[Date "2019.03.05"]
[Round "3"]
[White "bootstar"]
[Black "bascheyaro"]
[Result "0-1"]
[WhiteElo "2611"]
[BlackElo "2799"]
[TimeControl "180+2"]
[EndTime "13:41:48 PST"]
[Termination "bascheyaro won by checkmate"]

1. e4 {[%clk 0:03:01.9]} 1... e6 {[%clk 0:03:01.2]} 2. d4 {[%clk 0:03:01.9]}
2... d5 {[%clk 0:03:02.7]} 3. Nc3 {[%clk 0:03:03.6]} 3... Bb4 {[%clk 0:03:03.2]}
4. e5 {[%clk 0:03:04.8]} 4... Ne7 {[%clk 0:03:04.4]} 5. a3 {[%clk 0:03:05.7]}
5... Bxc3+ {[%clk 0:03:05.8]} 6. bxc3 {[%clk 0:03:07.6]} 6... b6 {[%clk
0:03:07.7]} 7. Ne2 {[%clk 0:03:08]} 7... Ba6 {[%clk 0:03:08.5]} 8. g3 {[%clk
0:03:01.4]} 8... c5 {[%clk 0:03:02.9]} 9. Bg2 {[%clk 0:03:01.2]} 9... Nbc6
{[%clk 0:03:03.4]} 10. Be3 {[%clk 0:02:59.4]} 10... cxd4 {[%clk 0:03:02.5]} 11.
cxd4 {[%clk 0:02:57.6]} 11... Rc8 {[%clk 0:03:03.2]} 12. O-O {[%clk 0:02:53.6]}
12... O-O {[%clk 0:03:02.5]} 13. Re1 {[%clk 0:02:53.7]} 13... Nf5 {[%clk
0:03:02.1]} 14. Nf4 {[%clk 0:02:49.1]} 14... Nxe3 {[%clk 0:02:59.1]} 15. fxe3
{[%clk 0:02:45.4]} 15... Ne7 {[%clk 0:02:47.2]} 16. a4 {[%clk 0:02:32.8]} 16...
Ng6 {[%clk 0:02:39.4]} 17. a5 {[%clk 0:02:32.9]} 17... bxa5 {[%clk 0:02:32.6]}
18. Qd2 {[%clk 0:02:31]} 18... Bb5 {[%clk 0:02:31.6]} 19. Nd3 {[%clk 0:02:16.7]}
19... a4 {[%clk 0:02:22.5]} 20. Ra3 {[%clk 0:01:52.5]} 20... a6 {[%clk
0:02:21.3]} 21. Rea1 {[%clk 0:01:21.8]} 21... Qc7 {[%clk 0:02:12.8]} 22. R1a2
{[%clk 0:01:20.5]} 22... Qe7 {[%clk 0:02:05.4]} 23. h4 {[%clk 0:01:13.8]} 23...
Rfd8 {[%clk 0:02:04.5]} 24. h5 {[%clk 0:00:54.9]} 24... Nf8 {[%clk 0:02:05.5]}
25. Nf4 {[%clk 0:00:54]} 25... h6 {[%clk 0:02:02.5]} 26. Kh2 {[%clk 0:00:54.5]}
26... Rc7 {[%clk 0:02:01.3]} 27. Nd3 {[%clk 0:00:44.3]} 27... Rdc8 {[%clk
0:02:01.3]} 28. Nc5 {[%clk 0:00:45.4]} 28... Rxc5 {[%clk 0:02:02.1]} 29. dxc5
{[%clk 0:00:46.5]} 29... Qxc5 {[%clk 0:02:03.3]} 30. Qd4 {[%clk 0:00:44.4]}
30... Nd7 {[%clk 0:02:03.9]} 31. Qxc5 {[%clk 0:00:38.6]} 31... Rxc5 {[%clk
0:02:04.4]} 32. e4 {[%clk 0:00:39.8]} 32... d4 {[%clk 0:02:01.9]} 33. Ra1 {[%clk
0:00:10.1]} 33... Rxc2 {[%clk 0:02:01.4]} 34. Rd1 {[%clk 0:00:11.1]} 34... d3
{[%clk 0:02:01.6]} 35. Kh3 {[%clk 0:00:12.5]} 35... Nxe5 {[%clk 0:02:01]} 36.
Bf1 {[%clk 0:00:13.5]} 36... f5 {[%clk 0:01:53.7]} 37. exf5 {[%clk 0:00:13.7]}
37... exf5 {[%clk 0:01:55]} 38. Bxd3 {[%clk 0:00:12.6]} 38... Bxd3 {[%clk
0:01:54.4]} 39. Raxd3 {[%clk 0:00:13.4]} 39... Nxd3 {[%clk 0:01:52.7]} 40. Rxd3
{[%clk 0:00:15.3]} 40... Rc5 {[%clk 0:01:53.7]} 41. Rd8+ {[%clk 0:00:11.7]}
41... Kh7 {[%clk 0:01:54.4]} 42. Rd3 {[%clk 0:00:10.9]} 42... Ra5 {[%clk
0:01:55.4]} 43. Ra3 {[%clk 0:00:11.8]} 43... g6 {[%clk 0:01:55.3]} 44. Kh4
{[%clk 0:00:12.4]} 44... g5+ {[%clk 0:01:55.8]} 45. Kh3 {[%clk 0:00:13.7]} 45...
Kg7 {[%clk 0:01:57.3]} 46. Rc3 {[%clk 0:00:13.4]} 46... a3 {[%clk 0:01:57.7]}
47. Rc7+ {[%clk 0:00:13.7]} 47... Kf8 {[%clk 0:01:59]} 48. Rc8+ {[%clk
0:00:13.3]} 48... Ke7 {[%clk 0:01:59.4]} 49. Rc1 {[%clk 0:00:14.8]} 49... a2
{[%clk 0:02:00.4]} 50. Ra1 {[%clk 0:00:16.5]} 50... Ra3 {[%clk 0:02:00.9]} 51.
Kh2 {[%clk 0:00:16.6]} 51... g4 {[%clk 0:02:02.1]} 52. Kg2 {[%clk 0:00:17.5]}
52... Kf6 {[%clk 0:02:03.7]} 53. Kf2 {[%clk 0:00:19.4]} 53... Kg5 {[%clk
0:02:05]} 54. Ke2 {[%clk 0:00:20.8]} 54... Rxg3 {[%clk 0:02:04.9]} 55. Kf2
{[%clk 0:00:22.4]} 55... Ra3 {[%clk 0:02:05.9]} 56. Kg2 {[%clk 0:00:22.6]} 56...
f4 {[%clk 0:02:06.8]} 57. Kh2 {[%clk 0:00:24.5]} 57... Kh4 {[%clk 0:02:06.9]}
58. Kg2 {[%clk 0:00:26.4]} 58... g3 {[%clk 0:02:07.9]} 59. Kh1 {[%clk
0:00:26.3]} 59... f3 {[%clk 0:02:08.5]} 60. Kg1 {[%clk 0:00:27.4]} 60... Rb3
{[%clk 0:02:10]} 61. Rf1 {[%clk 0:00:24.5]} 61... Rb1 {[%clk 0:02:10.8]} 62. Kh1
{[%clk 0:00:26.2]} 62... Rxf1# {[%clk 0:02:11.6]} 0-1

[Event "*** Titled Tuesday Blitz"]
[Site "Chess.com"]
[Date "2019.03.05"]
[Round "3"]
[White "Annawel"]
[Black "fm_magua"]
[Result "1-0"]
[WhiteElo "2902"]
[BlackElo "2474"]
[TimeControl "180+2"]
[EndTime "13:41:51 PST"]
[Termination "Annawel won by resignation"]

1. Nf3 {[%clk 0:03:01.9]} 1... c5 {[%clk 0:03:00.9]} 2. e4 {[%clk 0:03:02.7]}
2... Nc6 {[%clk 0:03:02.4]} 3. g3 {[%clk 0:03:02]} 3... g6 {[%clk 0:03:03.2]} 4.
Bg2 {[%clk 0:03:03.4]} 4... Bg7 {[%clk 0:03:04.8]} 5. O-O {[%clk 0:03:05.2]}
5... Rb8 {[%clk 0:03:06.3]} 6. d3 {[%clk 0:03:06.9]} 6... b5 {[%clk 0:03:07.5]}
7. a4 {[%clk 0:03:08.5]} 7... b4 {[%clk 0:03:08.3]} 8. c3 {[%clk 0:03:10.1]}
8... d6 {[%clk 0:03:06.2]} 9. d4 {[%clk 0:03:11.4]} 9... bxc3 {[%clk 0:03:05.1]}
10. bxc3 {[%clk 0:03:12.7]} 10... cxd4 {[%clk 0:03:06.5]} 11. cxd4 {[%clk
0:03:14.1]} 11... e6 {[%clk 0:03:07.8]} 12. Nc3 {[%clk 0:02:54]} 12... Nge7
{[%clk 0:03:08.1]} 13. Ba3 {[%clk 0:02:55.1]} 13... a6 {[%clk 0:03:02.6]} 14.
Rc1 {[%clk 0:02:48.4]} 14... O-O {[%clk 0:03:02.7]} 15. d5 {[%clk 0:02:31.1]}
15... exd5 {[%clk 0:03:00]} 16. Nxd5 {[%clk 0:02:32.3]} 16... Nxd5 {[%clk
0:02:42.8]} 17. Rxc6 {[%clk 0:02:06.4]} 17... Nc3 {[%clk 0:02:28.5]} 18. Qxd6
{[%clk 0:02:07]} 18... Bb7 {[%clk 0:02:23]} 19. Rb6 {[%clk 0:01:03.8]} 19...
Bxe4 {[%clk 0:01:45.9]} 20. Rxb8 {[%clk 0:00:53]} 20... Qxb8 {[%clk 0:01:45.7]}
21. Qxa6 {[%clk 0:00:50.1]} 21... Qa8 {[%clk 0:01:35.1]} 22. Qxa8 {[%clk
0:00:39.5]} 22... Rxa8 {[%clk 0:01:35.5]} 23. Re1 {[%clk 0:00:36.3]} 23... Rxa4
{[%clk 0:01:28.1]} 24. Bd6 {[%clk 0:00:36.2]} 24... Ra6 {[%clk 0:00:47]} 25. Bb4
{[%clk 0:00:33.3]} 25... Ra4 {[%clk 0:00:31.3]} 26. Bc5 {[%clk 0:00:26.4]} 26...
h6 {[%clk 0:00:27]} 27. h4 {[%clk 0:00:27]} 27... Rc4 {[%clk 0:00:21.5]} 28. Be3
{[%clk 0:00:27.7]} 28... Rc8 {[%clk 0:00:21.9]} 29. Bd2 {[%clk 0:00:27.3]} 29...
Rc4 {[%clk 0:00:20]} 30. Kh2 {[%clk 0:00:23]} 30... Nd5 {[%clk 0:00:18.6]} 31.
Ne5 {[%clk 0:00:05.8]} 31... Bxe5 {[%clk 0:00:12.6]} 32. Bxe4 {[%clk 0:00:07]}
32... Nf6 {[%clk 0:00:10.2]} 33. Bf3 {[%clk 0:00:08.5]} 33... Rc2 {[%clk
0:00:07.7]} 34. Re2 {[%clk 0:00:10]} 34... Bd6 {[%clk 0:00:04.8]} 35. Bxh6
{[%clk 0:00:09.9]} 35... Rc3 {[%clk 0:00:05.4]} 36. Kg2 {[%clk 0:00:10.1]} 36...
Nd5 {[%clk 0:00:06.4]} 1-0

[Event "*** Titled Tuesday Blitz"]
[Site "Chess.com"]
[Date "2019.03.05"]
[Round "3"]
[White "Genghis_K"]
[Black "Bryakin_Mikhail"]
[Result "1-0"]
[WhiteElo "2840"]
[BlackElo "2649"]
[TimeControl "180+2"]
[EndTime "13:41:55 PST"]
[Termination "Genghis_K won on time"]

1. d4 {[%clk 0:02:58.5]} 1... d5 {[%clk 0:02:59.9]} 2. Bf4 {[%clk 0:02:58.3]}
2... Nf6 {[%clk 0:03:00.3]} 3. e3 {[%clk 0:02:59.3]} 3... c5 {[%clk 0:03:01.7]}
4. c3 {[%clk 0:03:00.1]} 4... Nc6 {[%clk 0:03:02.7]} 5. Nd2 {[%clk 0:03:01.5]}
5... Bf5 {[%clk 0:03:02.9]} 6. Ngf3 {[%clk 0:02:59.6]} 6... Qb6 {[%clk
0:02:49.1]} 7. Nh4 {[%clk 0:02:50.1]} 7... Bd7 {[%clk 0:02:19]} 8. Qb3 {[%clk
0:02:38.8]} 8... e6 {[%clk 0:02:17.2]} 9. Nhf3 {[%clk 0:02:33.3]} 9... c4 {[%clk
0:02:13.9]} 10. Qc2 {[%clk 0:02:31]} 10... Nh5 {[%clk 0:02:14.7]} 11. Bg3 {[%clk
0:02:15.3]} 11... Nxg3 {[%clk 0:02:13.7]} 12. hxg3 {[%clk 0:02:17.2]} 12... h6
{[%clk 0:02:14.6]} 13. e4 {[%clk 0:02:15.8]} 13... Bd6 {[%clk 0:02:11.5]} 14.
Be2 {[%clk 0:02:13.2]} 14... Qc7 {[%clk 0:02:09.2]} 15. Nf1 {[%clk 0:02:08.7]}
15... dxe4 {[%clk 0:01:54]} 16. Qxe4 {[%clk 0:02:07.1]} 16... Ne7 {[%clk
0:01:54]} 17. Ne3 {[%clk 0:02:00.7]} 17... Bb5 {[%clk 0:01:32.8]} 18. a4 {[%clk
0:01:46.5]} 18... Ba6 {[%clk 0:01:24.3]} 19. b4 {[%clk 0:01:32.4]} 19... cxb3
{[%clk 0:01:19.6]} 20. Bxa6 {[%clk 0:01:31.5]} 20... Qxc3+ {[%clk 0:01:20.5]}
21. Ke2 {[%clk 0:01:32.9]} 21... Bb4 {[%clk 0:01:03.8]} 22. Bb5+ {[%clk
0:01:21.4]} 22... Kf8 {[%clk 0:01:01.2]} 23. Rab1 {[%clk 0:01:16.4]} 23... b2
{[%clk 0:00:19.6]} 24. Qc2 {[%clk 0:00:52.9]} 24... a6 {[%clk 0:00:13.1]} 25.
Qxb2 {[%clk 0:00:45.5]} 25... Qxb2+ {[%clk 0:00:05.9]} 26. Rxb2 {[%clk
0:00:47.4]} 26... Ba3 {[%clk 0:00:07.1]} 27. Rb3 {[%clk 0:00:46.7]} 27... axb5
{[%clk 0:00:08]} 28. Rxa3 {[%clk 0:00:48.3]} 28... bxa4 {[%clk 0:00:08.8]} 29.
Rb1 {[%clk 0:00:47.6]} 29... Nc6 {[%clk 0:00:03.6]} 30. Rxb7 {[%clk 0:00:46.1]}
30... g6 {[%clk 0:00:05]} 31. Rc7 {[%clk 0:00:34]} 31... Ra6 {[%clk 0:00:05.1]}
32. Nc4 {[%clk 0:00:27.9]} 32... Kg7 {[%clk 0:00:04.7]} 33. Nce5 {[%clk
0:00:28.8]} 33... Nxe5 {[%clk 0:00:03.8]} 34. Nxe5 {[%clk 0:00:30.7]} 34... Rf8
{[%clk 0:00:05]} 35. Rc4 {[%clk 0:00:23.1]} 35... Rd8 {[%clk 0:00:05.4]} 36.
Rcxa4 {[%clk 0:00:22.9]} 36... Rxa4 {[%clk 0:00:02.4]} 37. Rxa4 {[%clk
0:00:24.8]} 1-0

[Event "*** Titled Tuesday Blitz"]
[Site "Chess.com"]
[Date "2019.03.05"]
[Round "3"]
[White "GeorgMeier"]
[Black "dreamist"]
[Result "1-0"]
[WhiteElo "2831"]
[BlackElo "2719"]
[TimeControl "180+2"]
[EndTime "13:42:01 PST"]
[Termination "GeorgMeier won by checkmate"]

1. Nf3 {[%clk 0:03:01.9]} 1... Nf6 {[%clk 0:02:59.9]} 2. g3 {[%clk 0:03:00.3]}
2... g6 {[%clk 0:02:54.3]} 3. Bg2 {[%clk 0:03:01.4]} 3... Bg7 {[%clk 0:02:55.7]}
4. d4 {[%clk 0:03:03]} 4... O-O {[%clk 0:02:56.1]} 5. O-O {[%clk 0:03:04.6]}
5... d6 {[%clk 0:02:55.7]} 6. b3 {[%clk 0:03:06.1]} 6... d5 {[%clk 0:02:46.4]}
7. c4 {[%clk 0:03:06.5]} 7... c6 {[%clk 0:02:45.2]} 8. Nc3 {[%clk 0:03:07.1]}
8... Bf5 {[%clk 0:02:40]} 9. Bb2 {[%clk 0:03:03.8]} 9... Ne4 {[%clk 0:02:39.3]}
10. e3 {[%clk 0:02:59.7]} 10... Nxc3 {[%clk 0:02:38.6]} 11. Bxc3 {[%clk
0:03:00.9]} 11... Be4 {[%clk 0:02:39.4]} 12. Qe2 {[%clk 0:03:00.5]} 12... e6
{[%clk 0:02:39.7]} 13. Rfd1 {[%clk 0:03:01.2]} 13... Nd7 {[%clk 0:02:39.5]} 14.
Rac1 {[%clk 0:03:01.4]} 14... Rc8 {[%clk 0:02:33.8]} 15. Bf1 {[%clk 0:02:58.3]}
15... g5 {[%clk 0:02:23.2]} 16. Nd2 {[%clk 0:02:59.1]} 16... Bg6 {[%clk
0:02:23.8]} 17. e4 {[%clk 0:03:00.2]} 17... Nf6 {[%clk 0:02:10.1]} 18. Bg2
{[%clk 0:03:00.7]} 18... Bh5 {[%clk 0:02:04.9]} 19. Bf3 {[%clk 0:03:01.2]} 19...
Bg6 {[%clk 0:02:03.5]} 20. h3 {[%clk 0:02:43]} 20... h6 {[%clk 0:01:58.6]} 21.
e5 {[%clk 0:02:39.8]} 21... Nd7 {[%clk 0:01:58.6]} 22. Bh5 {[%clk 0:02:31]}
22... Bh7 {[%clk 0:01:59]} 23. Nf3 {[%clk 0:02:16.9]} 23... Qe7 {[%clk
0:01:30.9]} 24. h4 {[%clk 0:02:15.9]} 24... f5 {[%clk 0:01:28.2]} 25. hxg5
{[%clk 0:01:54.9]} 25... hxg5 {[%clk 0:01:28.7]} 26. Bd2 {[%clk 0:01:56.4]}
26... f4 {[%clk 0:01:14.2]} 27. Nh2 {[%clk 0:01:39.6]} 27... Be4 {[%clk
0:01:06.9]} 28. Qg4 {[%clk 0:01:21.4]} 28... c5 {[%clk 0:01:04.9]} 29. gxf4
{[%clk 0:01:17.1]} 29... cxd4 {[%clk 0:01:03.9]} 30. cxd5 {[%clk 0:01:11.9]}
30... Bxd5 {[%clk 0:00:59.7]} 31. Bg6 {[%clk 0:00:49.6]} 31... Rxc1 {[%clk
0:00:53.3]} 32. Rxc1 {[%clk 0:00:49.5]} 32... Rd8 {[%clk 0:00:37.1]} 33. Rc7
{[%clk 0:00:33.3]} 33... Bf8 {[%clk 0:00:31.9]} 34. Qh5 {[%clk 0:00:29.3]} 34...
Bc6 {[%clk 0:00:20]} 35. Ng4 {[%clk 0:00:25.3]} 35... gxf4 {[%clk 0:00:16.9]}
36. Bxf4 {[%clk 0:00:21.9]} 36... Bg7 {[%clk 0:00:17.3]} 37. Qh7+ {[%clk
0:00:18.6]} 37... Kf8 {[%clk 0:00:18.2]} 38. Bh6 {[%clk 0:00:20]} 38... Nf6
{[%clk 0:00:11.9]} 39. Qh8+ {[%clk 0:00:17.6]} 39... Ng8 {[%clk 0:00:11.6]} 40.
Bxg7+ {[%clk 0:00:18.5]} 40... Qxg7 {[%clk 0:00:11]} 41. Qxg7# {[%clk
0:00:19.6]} 1-0

[Event "*** Titled Tuesday Blitz"]
[Site "Chess.com"]
[Date "2019.03.05"]
[Round "3"]
[White "fu24"]
[Black "ProstoIgrok"]
[Result "0-1"]
[WhiteElo "2499"]
[BlackElo "2683"]
[TimeControl "180+2"]
[EndTime "13:42:02 PST"]
[Termination "ProstoIgrok won by resignation"]

1. d4 {[%clk 0:03:01.9]} 1... d5 {[%clk 0:03:00.6]} 2. Bf4 {[%clk 0:03:01.5]}
2... Nf6 {[%clk 0:03:01.6]} 3. e3 {[%clk 0:03:02.7]} 3... e6 {[%clk 0:03:02.4]}
4. Nd2 {[%clk 0:03:03]} 4... Bd6 {[%clk 0:03:03.6]} 5. Bg3 {[%clk 0:03:04.2]}
5... c5 {[%clk 0:03:04]} 6. c3 {[%clk 0:03:04.9]} 6... Nc6 {[%clk 0:03:05.5]} 7.
Ngf3 {[%clk 0:03:06.4]} 7... Qe7 {[%clk 0:03:06.9]} 8. Ne5 {[%clk 0:03:06.4]}
8... O-O {[%clk 0:03:07.2]} 9. Bd3 {[%clk 0:03:07.2]} 9... Nd7 {[%clk
0:03:07.5]} 10. Nxd7 {[%clk 0:03:08.3]} 10... Qxd7 {[%clk 0:03:09.4]} 11. Bxd6
{[%clk 0:03:08.5]} 11... Qxd6 {[%clk 0:03:10.6]} 12. f4 {[%clk 0:03:09.8]} 12...
cxd4 {[%clk 0:02:51.2]} 13. cxd4 {[%clk 0:03:10.5]} 13... Nb4 {[%clk 0:02:52.4]}
14. Qb3 {[%clk 0:02:41.8]} 14... a5 {[%clk 0:02:39.3]} 15. a3 {[%clk 0:02:42.4]}
15... Nxd3+ {[%clk 0:02:40.2]} 16. Qxd3 {[%clk 0:02:43.2]} 16... b6 {[%clk
0:02:41.8]} 17. Rc1 {[%clk 0:02:31.1]} 17... Ba6 {[%clk 0:02:41.2]} 18. Qb3
{[%clk 0:02:32.2]} 18... f6 {[%clk 0:02:41.2]} 19. Nf3 {[%clk 0:02:29.1]} 19...
Bc4 {[%clk 0:02:16.4]} 20. Qc2 {[%clk 0:02:24.4]} 20... Rac8 {[%clk 0:02:12.5]}
21. Kf2 {[%clk 0:02:23.7]} 21... e5 {[%clk 0:02:00.1]} 22. Qf5 {[%clk
0:02:15.3]} 22... exf4 {[%clk 0:01:31.9]} 23. exf4 {[%clk 0:02:12.3]} 23... g6
{[%clk 0:01:28.6]} 24. Qg4 {[%clk 0:02:11.4]} 24... Rce8 {[%clk 0:01:29.5]} 25.
Rhe1 {[%clk 0:02:11.8]} 25... Kg7 {[%clk 0:01:14.4]} 26. h4 {[%clk 0:02:11.2]}
26... h5 {[%clk 0:01:03]} 27. Qg3 {[%clk 0:02:12.5]} 27... Bd3 {[%clk
0:00:59.6]} 28. Nd2 {[%clk 0:01:42.6]} 28... Bf5 {[%clk 0:00:58.9]} 29. Rxe8
{[%clk 0:01:18.5]} 29... Rxe8 {[%clk 0:00:59.7]} 30. Re1 {[%clk 0:01:20.4]}
30... Rc8 {[%clk 0:00:59.8]} 31. Qe3 {[%clk 0:01:13.8]} 31... Kf7 {[%clk
0:00:47.6]} 32. Re2 {[%clk 0:01:13.3]} 32... Bg4 {[%clk 0:00:39.2]} 33. Nf3
{[%clk 0:01:13.4]} 33... b5 {[%clk 0:00:34.5]} 34. Rd2 {[%clk 0:01:11.5]} 34...
b4 {[%clk 0:00:32.1]} 35. axb4 {[%clk 0:01:04.4]} 35... axb4 {[%clk 0:00:34]}
36. Re2 {[%clk 0:01:04.4]} 36... Ra8 {[%clk 0:00:34.4]} 37. g3 {[%clk
0:01:03.9]} 37... Bd7 {[%clk 0:00:27.2]} 38. Rc2 {[%clk 0:00:53.1]} 38... Re8
{[%clk 0:00:26.1]} 39. Qb3 {[%clk 0:00:53.6]} 39... Qe6 {[%clk 0:00:19.2]} 40.
Qxb4 {[%clk 0:00:40.3]} 40... Qe3+ {[%clk 0:00:19.8]} 41. Kg2 {[%clk 0:00:41.6]}
41... Bg4 {[%clk 0:00:14.6]} 42. Ng1 {[%clk 0:00:25.3]} 42... Qe4+ {[%clk
0:00:14.6]} 43. Kh2 {[%clk 0:00:25.9]} 43... Qxc2+ {[%clk 0:00:15.7]} 0-1